fUSD/lending_fUSD_20260423
["ID","MTS","AMOUNT","RATE_DAILY","PERIOD"]
[421046464,1776951499942,-638.3,0.00014563,2]
[421046465,1776951499952,-570.37,0.00014563,2]
[421046466,1776951499961,-638.3,0.00014566,2]
[421046467,1776951499971,-568.09,0.00014566,2]
[421046468,1776951499980,-478.03,0.00014568,2]
[421046469,1776951499990,-568.13,0.00014568,2]
[421046470,1776951499999,-568.07,0.0001459,2]
[421046471,1776951500009,-183.4,0.0001459,2]
[421046472,1776951500019,-477.95,0.0001459,2]
[421046473,1776951500028,-477.94,0.0001459,2]
[421046474,1776951500038,-570.37,0.0001459,2]
[421046475,1776951500048,-183.4,0.0001459,2]
[421046476,1776951500057,-570.44,0.0001459,2]
[421046477,1776951500067,-638.26,0.0001459,2]
[421046478,1776951500076,-351.04,0.00014591,2]
[421046479,1776951500086,-183.4,0.00014591,2]
[421046480,1776951500096,-570.37,0.00014591,2]
[421046481,1776951500105,-638.38,0.00014591,2]
[421046482,1776951500115,-568.13,0.00014591,2]
[421046483,1776951500124,-2727.65,0.000147,2]
[421046484,1776951500134,-177.9063822,0.00014714,3]
[421046485,1776951500145,-400.0,0.0001479,2]
[421046486,1776951500155,-400.0,0.0001479,2]
[421046487,1776951500164,-400.0,0.0001479,2]
[421046488,1776951500173,-500.0,0.00014898,7]
[421046489,1776951500182,-500.0,0.00014899,8]
[421046490,1776951500192,-204923.33286773,0.000149,2]
[421046491,1776951500202,-281.585559,0.000149,2]
[421046492,1776951500212,-166.8241905,0.00014973,2]
[421046493,1776951500222,-500.0,0.00014999,9]
[421046494,1776951500232,-442.96076727,0.00015,2]
[421046495,1776951500242,-181068.26405545,0.00015,2]
[421046496,1776951500252,-1589.46565459,0.00015,5]
[421046497,1776951500261,-41070.23396885,0.00015,7]
[421046498,1776951500271,-500.0,0.00015,2]
[421046499,1776951500280,-165.0,0.00015,2]
[421046500,1776951500290,-2000.0,0.00015,2]
[421046501,1776951500300,-2000.0,0.00015,2]
[421046502,1776951500309,-2070.85993634,0.00015,2]
[421046503,1776951500319,-8061.73430094,0.00015,2]
[421046504,1776951500328,-426.68807842,0.00015,2]
[421046505,1776951500338,-913.2,0.00015,2]
[421046506,1776951500348,-423.08,0.00015,2]
[421046507,1776951500357,-253.85,0.00015,2]
[421046508,1776951500367,-10348.30681028,0.00015,2]
[421046509,1776951500376,-30000.0,0.00015,2]
[421046510,1776951500386,-225.54,0.00015,4]
[421046511,1776951500395,-800.0,0.00015,2]
[421046512,1776951500404,-300.0,0.00015,2]
[421046513,1776951500414,-527.39903,0.00015,2]
[421046514,1776951500424,-527.39903,0.00015,2]
[421046515,1776951500433,-151.0,0.00015,2]
[421046516,1776951500442,-151.0,0.00015,2]
[421046517,1776951500451,-527.39903,0.00015,2]
[421046518,1776951500461,-151.0,0.00015,2]
[421046519,1776951500471,-527.39903,0.00015,2]
[421046520,1776951500481,-151.0,0.00015,2]
[421046521,1776951500491,-186.635706,0.00015,2]
[421046522,1776951500500,-1253.74864,0.00015,2]
[421046523,1776951500510,-1253.74864,0.00015,2]
[421046524,1776951500520,-1355.428957,0.00015,2]
[421046525,1776951500531,-151.0,0.00015,2]
[421046526,1776951500540,-1253.74864,0.00015,2]
[421046527,1776951500550,-158.220676,0.00015,2]
[421046528,1776951500560,-1355.428957,0.00015,2]
[421046529,1776951500570,-151.0,0.00015,2]
[421046530,1776951500580,-10003.118468,0.00015,2]
[421046531,1776951500590,-158.220676,0.00015,2]
[421046532,1776951500600,-1355.428957,0.00015,2]
[421046533,1776951500610,-151.0,0.00015,2]
[421046534,1776951500620,-10003.118468,0.00015,2]
[421046535,1776951500630,-158.220676,0.00015,2]
[421046536,1776951500639,-183.03249,0.00015,2]
[421046537,1776951500649,-1355.428957,0.00015,2]
[421046538,1776951500659,-151.0,0.00015,2]
[421046539,1776951500668,-151.0,0.00015,2]
[421046540,1776951500678,-199.057466,0.00015,2]
[421046541,1776951500688,-10003.118468,0.00015,2]
[421046542,1776951500698,-1886.519104,0.00015,2]
[421046543,1776951500708,-158.220676,0.00015,2]
[421046544,1776951500718,-183.03249,0.00015,2]
[421046545,1776951500728,-199.057466,0.00015,2]
[421046546,1776951500738,-151.0,0.00015,2]
[421046547,1776951500748,-10003.118468,0.00015,2]
[421046548,1776951500758,-1886.519104,0.00015,2]
[421046549,1776951500767,-183.03249,0.00015,2]
[421046550,1776951500777,-700.669488,0.00015,2]
[421046551,1776951500787,-1253.74864,0.00015,2]
[421046552,1776951500797,-199.057466,0.00015,2]
[421046553,1776951500807,-1886.519104,0.00015,2]
[421046554,1776951500817,-183.03249,0.00015,2]
[421046555,1776951500826,-700.669488,0.00015,2]
[421046556,1776951500836,-199.057466,0.00015,2]
[421046557,1776951500846,-1886.519104,0.00015,2]
[421046558,1776951500856,-151.0,0.00015,2]
[421046559,1776951500866,-700.669488,0.00015,2]
[421046560,1776951500876,-151.0,0.00015,2]
[421046561,1776951500886,-700.669488,0.00015,2]
[421046562,1776951500895,-343.49465,0.00015,2]
[421046563,1776951500905,-900.0,0.00015068,2]
[421046564,1776951500914,-300.0,0.000151,2]
[421046565,1776951500924,-2959.24,0.000151,2]
[421046566,1776951500933,-505.0,0.00015205,3]
[421046567,1776951500944,-2990.72569033,0.0001522,2]
[421046568,1776951500953,-3382.07021052,0.00015267,2]
[421046569,1776951500963,-1517.64,0.000153,2]
[421046570,1776951500973,-150.0,0.0001534,2]
[421046571,1776951500983,-337.42,0.00015382,2]
[421046572,1776951500993,-183.38,0.00015385,2]
[421046573,1776951501002,-513.5704637,0.000154,2]
[421046574,1776951501012,-568.1,0.00015412,2]
[421046575,1776951501022,-568.19,0.00015412,2]
[421046576,1776951501031,-570.37,0.00015412,2]
[421046577,1776951501041,-570.37,0.00015412,2]
[421046578,1776951501051,-183.38,0.00015412,2]
[421046579,1776951501060,-638.3,0.00015412,2]
[421046580,1776951501071,-568.13,0.00015412,2]
[421046581,1776951501080,-570.37,0.00015413,2]
[421046582,1776951501089,-570.37,0.00015413,2]
[421046583,1776951501099,-568.19,0.00015413,2]
[421046584,1776951501108,-150.0,0.00015472,2]
[421046585,1776951501118,-150.0,0.00015472,2]
[421046586,1776951501127,-150.0,0.00015472,2]
[421046587,1776951501136,-282.0,0.00015472,2]
[421046588,1776951501146,-500.0,0.00015489,10]
[421046589,1776951501155,-43208.82265034,0.0001549,3]
[421046590,1776951501164,-1233.83658066,0.000155,2]
[421046591,1776951501173,-1450.0,0.00015501,2]
[421046592,1776951501183,-1450.0,0.00015501,2]
[421046593,1776951501192,-1450.0,0.00015501,2]
[421046594,1776951501202,-1450.0,0.00015501,2]
[421046595,1776951501212,-1450.0,0.00015501,2]
[421046596,1776951501222,-1450.0,0.00015501,2]
[421046597,1776951501231,-1450.0,0.00015501,2]
[421046598,1776951501241,-1450.0,0.00015501,2]
[421046599,1776951501250,-1031.0,0.00015501,2]
[421046600,1776951501259,-4000.0,0.00015507,2]
[421046601,1776951501269,-178.98,0.00015556,5]
[421046602,1776951501278,-171.705417,0.00015632,2]
[421046603,1776951501288,-1591.9935647,0.00015634,2]
[421046604,1776951501298,-400.0,0.0001566,2]
[421046605,1776951501307,-400.0,0.0001566,2]
[421046606,1776951501317,-574.515062,0.00015671,2]
[421046607,1776951501326,-2727.65,0.000157,2]
[421046608,1776951501336,-574.515062,0.00015726,2]
[421046609,1776951501346,-350.0,0.00015768,2]
[421046610,1776951501355,-350.0,0.00015768,2]
[421046611,1776951501365,-350.0,0.00015768,2]
[421046612,1776951501375,-574.515062,0.00015781,2]
[421046613,1776951501384,-2263.53480071,0.00015807,2]
[421046614,1776951501394,-400.0,0.00015844,2]
[421046615,1776951501403,-400.0,0.00015844,2]
[421046616,1776951501413,-400.0,0.00015844,2]
[421046617,1776951501423,-400.0,0.00015844,2]
[421046618,1776951501432,-400.0,0.00015844,2]
[421046619,1776951501442,-400.0,0.00015844,2]
[421046620,1776951501452,-400.0,0.00015844,2]
[421046621,1776951501461,-400.0,0.00015844,2]
[421046622,1776951501471,-400.0,0.00015844,2]
[421046623,1776951501480,-226.0,0.00015844,2]
[421046624,1776951501490,-574.515062,0.00015863,2]
[421046625,1776951501500,-120445.00317352,0.0001589,2]
[421046626,1776951501509,-2000.0,0.0001589,2]
[421046627,1776951501519,-4000.0,0.00015895,2]
[421046628,1776951501528,-500.0,0.000159,2]
[421046629,1776951501538,-500.62534876,0.000159,2]
[421046630,1776951501547,-574.515062,0.00015918,2]
[421046631,1776951501557,-493.0,0.00015931,2]
[421046632,1776951501567,-6192.03,0.00015945,2]
[421046633,1776951501576,-574.515062,0.00015973,2]
[421046634,1776951501586,-500.0,0.00015998,11]
[421046635,1776951501595,-3003.61669569,0.00015999,2]
[421046636,1776951501605,-500.0,0.00015999,12]
[421046637,1776951501614,-500.0,0.00015999,13]
[421046638,1776951501623,-151.0,0.00016,2]
[421046639,1776951501633,-181.53053911,0.00016,7]
[421046640,1776951501643,-1086.07819782,0.00016,2]
[421046641,1776951501652,-28100.93486291,0.00016,2]
[421046642,1776951501662,-1338.88795564,0.00016,3]
[421046643,1776951501672,-1300.0,0.00016,2]
[421046644,1776951501681,-740.0,0.00016,2]
[421046645,1776951501690,-150.0,0.00016,2]
[421046646,1776951501700,-150.0,0.00016,2]
[421046647,1776951501709,-150.0,0.00016,2]
[421046648,1776951501719,-150.0,0.00016,2]
[421046649,1776951501729,-31339.75060329,0.00016,60]
[421046650,1776951501739,-30000.0,0.00016,2]
[421046651,1776951501748,-4291.96400632,0.00016,2]
[421046652,1776951501757,-500.0,0.00016,2]
[421046653,1776951501767,-500.0,0.00016,2]
[421046654,1776951501776,-500.0,0.00016,2]
[421046655,1776951501786,-500.0,0.00016,2]
[421046656,1776951501795,-396.32113953,0.00016,2]
[421046657,1776951501805,-500.0,0.00016,2]
[421046658,1776951501814,-500.0,0.00016,2]
[421046659,1776951501824,-500.0,0.00016,2]
[421046660,1776951501833,-500.0,0.00016,2]
[421046661,1776951501842,-500.0,0.00016,2]
[421046662,1776951501851,-500.0,0.00016,2]
[421046663,1776951501860,-500.0,0.00016,2]
[421046664,1776951501870,-500.0,0.00016,2]
[421046665,1776951501879,-500.0,0.00016,2]
[421046666,1776951501889,-500.0,0.00016,2]
[421046667,1776951501898,-500.0,0.00016,2]
[421046668,1776951501908,-500.0,0.00016,2]
[421046669,1776951501917,-500.0,0.00016,2]
[421046670,1776951501930,-500.0,0.00016,2]
[421046671,1776951501940,-188.9634186,0.00016,2]
[421046672,1776951501950,-500.0,0.00016,2]
[421046673,1776951501959,-500.0,0.00016,2]
[421046674,1776951501968,-500.0,0.00016,2]
[421046675,1776951501978,-500.0,0.00016,2]
[421046676,1776951501988,-396.32113953,0.00016,2]
[421046677,1776951501999,-400.0,0.00016,2]
[421046678,1776951502008,-2959.24,0.00016,2]
[421046679,1776951502018,-596.0,0.00016,2]
[421046680,1776951502028,-240.37465124,0.00016,2]
[421046681,1776951502038,-2000.0,0.00016,2]
[421046682,1776951502048,-7109.08536,0.00016,6]
[421046683,1776951502058,-162.24421151,0.00016,3]
[421046684,1776951502068,-222.2357369,0.00016005,2]
[421046685,1776951502236,-2000.0,0.0001601,2]
[421046686,1776951502246,-2000.0,0.0001602,2]
[421046687,1776951502256,-574.515062,0.00016027,2]
[421046688,1776951502266,-2530.916342,0.0001603,2]
[421046689,1776951502275,-505.0,0.00016058,4]
[421046690,1776951502285,-527.39903,0.00016077,2]
[421046691,1776951502295,-527.39903,0.00016077,2]
[421046692,1776951502305,-151.0,0.00016077,2]
[421046693,1776951502315,-151.0,0.00016077,2]
[421046694,1776951502326,-527.39903,0.00016077,2]
[421046695,1776951502337,-156.053992,0.00016077,2]
[421046696,1776951502347,-527.399023,0.00016077,2]
[421046697,1776951502358,-151.0,0.00016077,2]
[421046698,1776951502369,-1253.74864,0.00016077,2]
[421046699,1776951502379,-1253.74864,0.00016077,2]
[421046700,1776951502390,-1355.428957,0.00016077,2]
[421046701,1776951502401,-151.0,0.00016077,2]
[421046702,1776951502411,-1253.74864,0.00016077,2]
[421046703,1776951502421,-158.220676,0.00016077,2]
[421046704,1776951502430,-1355.428957,0.00016077,2]
[421046705,1776951502438,-151.0,0.00016077,2]
[421046706,1776951502448,-10003.118468,0.00016077,2]
[421046707,1776951502459,-158.220676,0.00016077,2]
[421046708,1776951502469,-1355.428957,0.00016077,2]
[421046709,1776951502478,-296.644153,0.00016077,2]
[421046710,1776951502488,-10003.118468,0.00016077,2]
[421046711,1776951502498,-158.220676,0.00016077,2]
[421046712,1776951502507,-183.03249,0.00016077,2]
[421046713,1776951502518,-1355.428957,0.00016077,2]
[421046714,1776951502528,-235.50675,0.00016077,2]
[421046715,1776951502538,-199.057466,0.00016077,2]
[421046716,1776951502548,-151.0,0.00016077,2]
[421046717,1776951502557,-10003.118468,0.00016077,2]
[421046718,1776951502568,-1886.519104,0.00016077,2]
[421046719,1776951502578,-183.03249,0.00016077,2]
[421046720,1776951502588,-158.220673,0.00016077,2]
[421046721,1776951502598,-199.057466,0.00016077,2]
[421046722,1776951502608,-151.0,0.00016077,2]
[421046723,1776951502617,-10003.118467,0.00016077,2]
[421046724,1776951502628,-1886.519104,0.00016077,2]
[421046725,1776951502638,-700.669488,0.00016077,2]
[421046726,1776951502648,-183.03249,0.00016077,2]
[421046727,1776951502657,-1253.748639,0.00016077,2]
[421046728,1776951502667,-199.057466,0.00016077,2]
[421046729,1776951502677,-1886.519104,0.00016077,2]
[421046730,1776951502689,-183.032495,0.00016077,2]
[421046731,1776951502699,-700.669488,0.00016077,2]
[421046732,1776951502710,-199.057471,0.00016077,2]
[421046733,1776951502720,-1886.519109,0.00016077,2]
[421046734,1776951502730,-151.0,0.00016077,2]
[421046735,1776951502740,-700.669488,0.00016077,2]
[421046736,1776951502752,-151.0,0.00016077,2]
[421046737,1776951502762,-700.669479,0.00016077,2]
[421046738,1776951502772,-343.49465,0.00016077,2]
[421046739,1776951502782,-162707.88,0.00016077,2]
[421046740,1776951502791,-500.0,0.00016099,14]
[421046741,1776951502802,-500.0,0.00016099,15]
[421046742,1776951502811,-277147.08,0.000161,2]
[421046743,1776951502823,-574.515062,0.0001611,2]
[421046744,1776951502833,-165.92,0.00016116,2]
[421046745,1776951502843,-165.92,0.00016116,2]
[421046746,1776951502853,-165.92,0.00016116,2]
[421046747,1776951502863,-165.92,0.00016116,2]
[421046748,1776951502873,-165.92,0.00016116,2]
[421046749,1776951502883,-165.92,0.00016116,2]
[421046750,1776951502893,-165.92,0.00016116,2]
[421046751,1776951502903,-165.92,0.00016116,2]
[421046752,1776951502913,-165.90748655,0.00016116,2]
[421046753,1776951502923,-8111.69,0.00016116,2]
[421046754,1776951502933,-500.0,0.00016137,2]
[421046755,1776951502944,-574.515062,0.00016164,2]
[421046756,1776951502954,-636.84,0.0001617,2]
[421046757,1776951502963,-636.84,0.0001617,2]
[421046758,1776951502973,-636.84,0.0001617,2]
[421046759,1776951502983,-636.84,0.0001617,2]
[421046760,1776951502992,-636.85,0.0001617,2]
[421046761,1776951503002,-500.0,0.00016198,16]
[421046762,1776951503011,-500.0,0.00016199,17]
[421046763,1776951503021,-515.99636317,0.00016199,18]
[421046764,1776951503030,-576.4,0.00016207,2]
[421046765,1776951503040,-574.515062,0.00016219,2]
[421046766,1776951503050,-150.0,0.00016226,2]
[421046767,1776951503060,-150.0,0.00016226,2]
[421046768,1776951503071,-5026.3158382,0.0001623,3]
[421046769,1776951503081,-570.38,0.00016233,2]
[421046770,1776951503091,-638.25,0.00016233,2]
[421046771,1776951503101,-570.37,0.00016233,2]
[421046772,1776951503110,-638.38,0.00016235,2]
[421046773,1776951503120,-477.69,0.00016235,2]
[421046774,1776951503129,-570.37,0.00016235,2]
[421046775,1776951503139,-5400.0,0.0001628,2]
[421046776,1776951503149,-4000.0,0.00016282,2]
[421046777,1776951503159,-151.0,0.00016285,2]
[421046778,1776951503168,-153.0,0.0001629,2]
[421046779,1776951503178,-2284.03,0.000163,5]
[421046780,1776951503188,-574.515062,0.00016301,2]
[421046781,1776951503198,-150.0,0.0001634,2]
[421046782,1776951503207,-200.0,0.0001634,2]
[421046783,1776951503217,-574.515062,0.00016356,2]
[421046784,1776951503227,-400.0,0.0001637,2]
[421046785,1776951503236,-2000.0,0.000164,2]
[421046786,1776951503246,-2000.0,0.0001641,2]
[421046787,1776951503256,-2040.5124226,0.0001642,2]
[421046788,1776951503265,-1173.08,0.00016438,2]
[421046789,1776951503276,-277.72,0.00016438,2]
[421046790,1776951503286,-462.87,0.00016438,2]
[421046791,1776951503297,-24335.20128766,0.00016438,4]
[421046792,1776951503306,-167.4190403,0.00016438,30]
[421046793,1776951503316,-167.4190403,0.00016438,30]
[421046794,1776951503326,-166.49748599,0.00016438,7]
[421046795,1776951503337,-166.49748599,0.00016438,7]
[421046796,1776951503347,-800.0,0.00016438,2]
[421046797,1776951503356,-900.0,0.00016438,2]
[421046798,1776951503365,-1000.0,0.00016438,2]
[421046799,1776951503375,-152.0,0.00016438,2]
[421046800,1776951503384,-152.0,0.00016438,2]
[421046801,1776951503394,-152.0,0.00016438,2]
[421046802,1776951503403,-240.0,0.00016438,2]
[421046803,1776951503412,-152.0,0.00016438,2]
[421046804,1776951503423,-152.0,0.00016438,2]
[421046805,1776951503433,-152.0,0.00016438,2]
[421046806,1776951503442,-152.59054746,0.00016438,2]
[421046807,1776951503451,-152.0,0.00016438,2]
[421046808,1776951503461,-152.0,0.00016438,2]
[421046809,1776951503471,-151.0,0.00016438,2]
[421046810,1776951503480,-151.0,0.00016438,2]
[421046811,1776951503490,-151.0,0.00016438,2]
[421046812,1776951503499,-151.0,0.00016438,2]
[421046813,1776951503509,-193.598186,0.00016438,2]
[421046814,1776951503518,-500.0,0.00016438,2]
[421046815,1776951503528,-500.0,0.00016438,2]
[421046816,1776951503539,-500.0,0.00016438,2]
[421046817,1776951503548,-500.0,0.00016438,2]
[421046818,1776951503558,-500.0,0.00016438,2]
[421046819,1776951503567,-340.54716054,0.00016438,2]
[421046820,1776951503576,-500.0,0.00016438,2]
[421046821,1776951503585,-500.0,0.00016438,2]
[421046822,1776951503595,-318.33793022,0.00016438,2]
[421046823,1776951503604,-500.0,0.00016438,2]
[421046824,1776951503614,-500.0,0.00016438,2]
[421046825,1776951503623,-447.45006082,0.00016438,2]
[421046826,1776951503632,-491.73679495,0.00016438,2]
[421046827,1776951503642,-500.0,0.00016438,2]
[421046828,1776951503651,-167.14593098,0.00016438,2]
[421046829,1776951503661,-500.0,0.00016438,2]
[421046830,1776951503670,-500.0,0.00016438,2]
[421046831,1776951503680,-163.06097814,0.00016438,2]
[421046832,1776951503690,-211.40250299,0.00016438,2]
[421046833,1776951503700,-164.70166019,0.00016438,2]
[421046834,1776951503710,-519.80345721,0.00016438,2]
[421046835,1776951503720,-500.0,0.00016438,2]
[421046836,1776951503729,-500.0,0.00016438,2]
[421046837,1776951503739,-516.77113366,0.00016438,2]
[421046838,1776951503748,-500.0,0.00016438,2]
[421046839,1776951503758,-164.11221697,0.00016438,2]
[421046840,1776951503768,-500.0,0.00016438,2]
[421046841,1776951503777,-500.0,0.00016438,2]
[421046842,1776951503786,-500.0,0.00016438,2]
[421046843,1776951503796,-500.0,0.00016438,2]
[421046844,1776951503805,-500.0,0.00016438,2]
[421046845,1776951503814,-500.0,0.00016438,2]
[421046846,1776951503824,-163.40046824,0.00016438,2]
[421046847,1776951503833,-500.0,0.00016438,2]
[421046848,1776951503843,-500.0,0.00016438,2]
[421046849,1776951503852,-500.0,0.00016438,2]
[421046850,1776951503862,-160.12527247,0.00016438,2]
[421046851,1776951503871,-500.0,0.00016438,2]
[421046852,1776951503881,-500.0,0.00016438,2]
[421046853,1776951503890,-500.0,0.00016438,2]
[421046854,1776951503899,-161.06813765,0.00016438,2]
[421046855,1776951503908,-500.0,0.00016438,2]
[421046856,1776951503918,-408.7407192,0.00016438,2]
[421046857,1776951503928,-313.36463362,0.00016438,2]
[421046858,1776951503938,-169.03595354,0.00016438,2]
[421046859,1776951503948,-152.0,0.00016438,2]
[421046860,1776951503958,-152.0,0.00016438,2]
[421046861,1776951503967,-152.0,0.00016438,2]
[421046862,1776951503977,-152.0,0.00016438,2]
[421046863,1776951503987,-160.71766005,0.00016438,2]
[421046864,1776951503996,-400.0,0.0001647,2]
[421046865,1776951504007,-300.0,0.0001647,2]
[421046866,1776951504016,-400.0,0.0001647,2]
[421046867,1776951504025,-300.0,0.0001647,2]
[421046868,1776951504034,-400.0,0.0001647,2]
[421046869,1776951504044,-300.0,0.0001647,2]
[421046870,1776951504053,-400.0,0.0001647,2]
[421046871,1776951504062,-300.0,0.0001647,2]
[421046872,1776951504071,-400.0,0.0001647,2]
[421046873,1776951504081,-400.0,0.0001647,2]
[421046874,1776951504090,-400.0,0.0001647,2]
[421046875,1776951504100,-207.75278772,0.00016476,5]
[421046876,1776951504109,-13015.8541437,0.000165,2]
[421046877,1776951504119,-151.0,0.000165,2]
[421046878,1776951504129,-200.0,0.000165,10]
[421046879,1776951504140,-64013.79769088,0.000165,2]
[421046880,1776951504150,-1500.0,0.000165,2]
[421046881,1776951504159,-46424.52842105,0.000165,2]
[421046882,1776951504169,-6590.51768357,0.000165,2]
[421046883,1776951504179,-2534.65,0.000165,2]
[421046884,1776951504188,-2704.72,0.000165,2]
[421046885,1776951504198,-300.0,0.000165,7]
[421046886,1776951504209,-1005.74,0.000165,2]
[421046887,1776951504219,-2153.71876535,0.000165,2]
[421046888,1776951504228,-289.72925117,0.000165,2]
[421046889,1776951504238,-4609.12,0.000165,14]
[421046890,1776951504247,-400.0,0.0001653,2]
[421046891,1776951504256,-364.03440732,0.000166,2]
[421046892,1776951504266,-4000.0,0.0001667,2]
[421046893,1776951504276,-2727.65,0.000167,2]
[421046894,1776951504285,-150.0,0.00016712,2]
[421046895,1776951504294,-266.43458894,0.00016712,2]
[421046896,1776951504303,-150.0,0.00016712,2]
[421046897,1776951504315,-150.08943439,0.00016712,2]
[421046898,1776951504326,-157.68211213,0.00016712,2]
[421046899,1776951504336,-150.0,0.00016712,2]
[421046900,1776951504345,-150.0888424,0.00016712,2]
[421046901,1776951504354,-150.0,0.00016712,2]
[421046902,1776951504363,-250.45289908,0.00016712,2]
[421046903,1776951504372,-300.0,0.00016712,2]
[421046904,1776951504382,-300.0,0.00016712,2]
[421046905,1776951504391,-300.0,0.00016712,2]
[421046906,1776951504400,-201.63574852,0.00016712,2]
[421046907,1776951504409,-500.0,0.00016712,2]
[421046908,1776951504418,-500.0,0.00016712,2]
[421046909,1776951504428,-500.0,0.00016712,2]
[421046910,1776951504437,-500.0,0.00016712,2]
[421046911,1776951504446,-500.0,0.00016712,2]
[421046912,1776951504455,-500.0,0.00016712,2]
[421046913,1776951504464,-500.0,0.00016712,2]
[421046914,1776951504473,-610.15333478,0.00016712,2]
[421046915,1776951504483,-150.0,0.00016712,2]
[421046916,1776951504492,-177.57946405,0.00016712,2]
[421046917,1776951504501,-300.0,0.00016712,2]
[421046918,1776951504510,-300.0,0.00016712,2]
[421046919,1776951504519,-413.11262837,0.00016712,2]
[421046920,1776951504528,-500.0,0.00016712,2]
[421046921,1776951504538,-500.0,0.00016712,2]
[421046922,1776951504547,-500.0,0.00016712,2]
[421046923,1776951504556,-500.0,0.00016712,2]
[421046924,1776951504566,-500.0,0.00016712,2]
[421046925,1776951504575,-500.0,0.00016712,2]
[421046926,1776951504585,-606.33050184,0.00016712,2]
[421046927,1776951504594,-234.26,0.00016712,2]
[421046928,1776951504604,-2000.0,0.0001674,2]
[421046929,1776951504613,-3195.94173838,0.00016757,31]
[421046930,1776951504622,-150.0,0.00016786,2]
[421046931,1776951504631,-150.0,0.00016786,2]
[421046932,1776951504641,-150.0,0.00016786,2]
[421046933,1776951504650,-262.0,0.00016786,2]
[421046934,1776951504659,-162.06906877,0.000168,4]
[421046935,1776951504670,-2534.65,0.000168,2]
[421046936,1776951504679,-2704.72,0.000168,2]
[421046937,1776951504688,-3543.14,0.000168,4]
[421046938,1776951504698,-3543.14,0.000168,4]
[421046939,1776951504708,-3543.14,0.000168,4]
[421046940,1776951504717,-3543.14,0.000168,4]
[421046941,1776951504727,-3149.45,0.000168,7]
[421046942,1776951504737,-3149.45,0.000168,7]
[421046943,1776951504746,-3149.45,0.000168,7]
[421046944,1776951504756,-2959.24,0.000169,2]
[421046945,1776951504765,-400.0,0.000169,2]
[421046946,1776951504775,-400.0,0.000169,2]
[421046947,1776951504784,-393.0,0.000169,2]
[421046948,1776951504794,-183.0,0.000169,2]
[421046949,1776951504803,-505.0,0.0001691,4]
[421046950,1776951504813,-150.0,0.00016925,2]
[421046951,1776951504822,-199.0,0.00016925,2]
[421046952,1776951504832,-1137.89,0.00016931,2]
[421046953,1776951504842,-185.14,0.00016953,2]
[421046954,1776951504851,-150.0,0.00016984,2]
[421046955,1776951504860,-150.0,0.00016984,2]
[421046956,1776951504869,-251.0,0.00016984,2]
[421046957,1776951504879,-1000.0,0.00016986,2]
[421046958,1776951504888,-1000.0,0.00016986,2]
[421046959,1776951504897,-1000.0,0.00016986,2]
[421046960,1776951504907,-1000.0,0.00016986,2]
[421046961,1776951504916,-1000.0,0.00016986,2]
[421046962,1776951504926,-406.56107837,0.00016986,2]
[421046963,1776951504935,-1000.0,0.00016986,2]